{"text_format":"3","workbook":"xlsx","n_sheets":2,"sheets":["Kezdés","Esküvői költségvetés"],"read":"whole","date_system":"1900"}

{"sheet":"Kezdés","index":0,"n_rows":7,"n_cols":2,"rows_kept":7}
[null,"A SABLON BEMUTATÁSA"]
[null,"Ezzel a sablonnal nyomon követheti a tényleges esküvői kiadásait a különböző elemeken, és összevetheti őket a tervezett összegekkel."]
[null,"A kiadásokat megadhatja a ruházat, dekoráció, ajándékok, virágok, zene, fényképezés, vacsora, papírköltség, szállítás és fuvarozás, illetve az egyéb kategóriába tartozó elemekre a vonatkozó táblázatokban."]
[null,"A program automatikusan kiszámítja az összes becsült és az összes tényleges kiadást."]
[null,"Megjegyzés: "]
[null,"Az ESKÜVŐI KÖLTSÉGVETÉS munkalap A oszlopa további utasításokat tartalmaz. Ez a szöveg szándékosan van elrejtve. Ha törölni szeretné a szöveget, jelölje ki az A oszlopot, majd nyomja le a DELETE billentyűt. Ha láthatóvá szeretné tenni a szöveget, jelölje ki az A oszlopot, majd módosítsa a betűszínt."]
[null,"Ha többet szeretne megtudni a táblázatokról, nyomja le a SHIFT+F10 billentyűkombinációt egy táblázaton belül, válassza a TÁBLÁZAT parancsot, majd a HELYETTESÍTŐ SZÖVEG elemet."]

{"sheet":"Esküvői költségvetés","index":1,"n_rows":93,"n_cols":4,"rows_kept":93,"merged":[[0,1,0,3],[2,1,2,3],[6,1,6,3],[15,1,15,3],[25,1,25,3],[34,1,34,3],[43,1,43,3],[50,1,50,3],[59,1,59,3],[68,1,68,3],[77,1,77,3],[85,1,85,3]]}
[null,"ESKÜVŐI KÖLTSÉGVETÉS"]
[]
[null,"ÖSSZES KIADÁS "]
[null,"Tétel ","Becsült","Tényleges"]
[null,"Összes kiadás ",{"$f":"SUM(Ruházat[[#Totals],[Becsült]],Dekoráció[[#Totals],[Becsült]],Ajándékok[[#Totals],[Becsült]],Virágok[[#Totals],[Becsült]],Zene[[#Totals],[Becsült]],Fényképezés[[#Totals],[Becsült]],Fogadás[[#Totals],[Becsült]],ÍrószerÉsNyomtatás[[#Totals],[Becsült]],Szállítás[[#Totals],[Becsült]],EgyébKiadások[[#Totals],[Becsült]])","v":0},{"$f":"SUM(Ruházat[[#Totals],[Tényleges]],Dekoráció[[#Totals],[Tényleges]],Ajándékok[[#Totals],[Tényleges]],Virágok[[#Totals],[Tényleges]],Zene[[#Totals],[Tényleges]],Fényképezés[[#Totals],[Tényleges]],Fogadás[[#Totals],[Tényleges]],ÍrószerÉsNyomtatás[[#Totals],[Tényleges]],Szállítás[[#Totals],[Tényleges]],EgyébKiadások[[#Totals],[Tényleges]],)","v":0}]
[]
[null,"RUHÁZAT"]
[null,"Tétel ","Becsült","Tényleges"]
[null,"Eljegyzési gyűrű"]
[null,"Jegygyűrűk"]
[null,"Menyasszonyi ruha"]
[null,"Fátyol vagy fejdísz"]
[null,"Egyéb:"]
[null,"Ruházat összesen",{"$f":"SUBTOTAL(109,Ruházat[Becsült])","v":0},{"$f":"SUBTOTAL(109,Ruházat[Tényleges])","v":0}]
[]
[null,"DEKORÁCIÓ"]
[null,"Tétel ","Becsült","Tényleges"]
[null,"Csokrok a templomba és más helyekre"]
[null,"Asztaldíszek (virágok nélkül)"]
[null,"Gyertyák"]
[null,"Világítás"]
[null,"Léggömbök"]
[null,"Egyéb:"]
[null,"Dekoráció összesen",{"$f":"SUBTOTAL(109,Dekoráció[Becsült])","v":0},{"$f":"SUBTOTAL(109,Dekoráció[Tényleges])","v":0}]
[]
[null,"AJÁNDÉKOK"]
[null,"Tétel ","Becsült","Tényleges"]
[null,"Segítők"]
[null,"Menyasszony és vőlegény"]
[null,"Szülők"]
[null,"Felolvasók/egyéb résztvevők"]
[null,"Egyéb:"]
[null,"Ajándékok összesen",{"$f":"SUBTOTAL(109,Ajándékok[Becsült])","v":0},{"$f":"SUBTOTAL(109,Ajándékok[Tényleges])","v":0}]
[]
[null,"VIRÁG"]
[null,"Tétel ","Becsült","Tényleges"]
[null,"Csokrok"]
[null,"Kitűzők"]
[null,"Virágcsokrok"]
[null,"Szertartás"]
[null,"Egyéb:"]
[null,"Virágok összesen",{"$f":"SUBTOTAL(109,Virágok[Becsült])","v":0},{"$f":"SUBTOTAL(109,Virágok[Tényleges])","v":0}]
[]
[null,"ZENE"]
[null,"Tétel ","Becsült","Tényleges"]
[null,"Zenészek a szertartáson"]
[null,"Zenekar vagy DJ a fogadáson"]
[null,"Egyéb:"]
[null,"Zene összesen",{"$f":"SUBTOTAL(109,Zene[Becsült])","v":0},{"$f":"SUBTOTAL(109,Zene[Tényleges])","v":0}]
[]
[null,"FÉNYKÉPEZÉS"]
[null,"Tétel ","Becsült","Tényleges"]
[null,"Beállított képek"]
[null,"Elkapott képek"]
[null,"Utánrendelések"]
[null,"Fényképalbumok"]
[null,"Egyéb:"]
[null,"Fényképezés összesen",{"$f":"SUBTOTAL(109,Fényképezés[Becsült])","v":0},{"$f":"SUBTOTAL(109,Fényképezés[Tényleges])","v":0}]
[]
[null,"FOGADÁS "]
[null,"Tétel ","Becsült","Tényleges"]
[null,"Helyiségbérleti díjak"]
[null,"Asztalok és székek"]
[null,"Élelmiszer"]
[null,"Abroszok"]
[null,"Egyéb:"]
[null,"Fogadás összesen (zene és dekoráció nélkül)",{"$f":"SUBTOTAL(109,Fogadás[Becsült])","v":0},{"$f":"SUBTOTAL(109,Fogadás[Tényleges])","v":0}]
[]
[null,"PAPÍRKÖLTSÉG ÉS NYOMTATÁS"]
[null,"Tétel ","Becsült","Tényleges"]
[null,"Meghívók"]
[null,"Hirdetmények"]
[null,"Köszönőkártyák"]
[null,"Személyre szóló dolgok"]
[null,"Egyéb:"]
[null,"Papírköltség és nyomtatás összesen",{"$f":"SUBTOTAL(109,ÍrószerÉsNyomtatás[Becsült])","v":0},{"$f":"SUBTOTAL(109,ÍrószerÉsNyomtatás[Tényleges])","v":0}]
[]
[null,"KÖZLEKEDÉS"]
[null,"Tétel ","Becsült","Tényleges"]
[null,"Limuzin és kézikocsik"]
[null,"Parkolás"]
[null,"Taxi"]
[null,"Egyéb:"]
[null,"Szállítás és fuvarozás összesen",{"$f":"SUBTOTAL(109,Szállítás[Becsült])","v":0},{"$f":"SUBTOTAL(109,Szállítás[Tényleges])","v":0}]
[]
[null,"EGYÉB KIADÁSOK"]
[null,"Tétel ","Becsült","Tényleges"]
[null,"Pap vagy szertartásvezető"]
[null,"Templom vagy szertartás helyszínének díja"]
[null,"Esküvőszervező"]
[null,"Próbavacsora"]
[null,"Egyéb:"]
[null,"Egyéb kiadások összesen",{"$f":"SUBTOTAL(109,EgyébKiadások[Becsült])","v":0},{"$f":"SUBTOTAL(109,EgyébKiadások[Tényleges])","v":0}]